fUST/lending_fUST_20260222
["ID","MTS","AMOUNT","RATE_DAILY","PERIOD"]
[406286043,1771689606618,156.28,6.9e-05,2]
[406286141,1771690232342,-608.0,0.00013273,2]
[406286143,1771690232354,-215.74554757,0.00013516,2]
[406286145,1771690232364,-500.0,0.00014245,2]
[406286147,1771690232374,-300.0,0.00014778,2]
[406286150,1771690232383,-300.0,0.00014778,2]
[406286153,1771690232392,-1200.0,0.00014778,2]
[406286155,1771690232403,-500.0,0.00014779,2]
[406286159,1771690232412,-500.0,0.00014779,2]
[406286163,1771690232422,-500.0,0.00014779,2]
[406286166,1771690232433,-260.0012859,0.00014779,2]
[406286169,1771690232442,-500.0,0.00014779,2]
[406286171,1771690232457,-500.0,0.00014779,2]
[406286173,1771690232469,-500.0,0.00014779,2]
[406286174,1771690232479,-500.0,0.00014779,2]
[406286175,1771690232487,-500.0,0.00014779,2]
[406286176,1771690232496,-500.0,0.00014779,2]
[406286177,1771690232506,-600.0,0.00015073,2]
[406286178,1771690232515,-306.78,0.000156,10]
[406286179,1771690232524,-420.0,0.00016177,2]
[406286180,1771690232537,-306.0,0.00016256,2]
[406286181,1771690232547,-720.0,0.0001658,2]
[406286182,1771690232556,-587.0,0.00017709,2]
[406286183,1771690232565,-864.0,0.00018238,2]
[406286184,1771690232575,-733.0,0.00019386,2]
[406286185,1771690232587,-1000.0,0.00020062,2]
[406286186,1771690232597,-200.9465,0.00021858,2]
[406286187,1771690232606,-150.0,0.00021918,2]
[406286188,1771690232616,-1000.0,0.00022068,10]
[406286189,1771690232625,-244.0,0.00022068,10]
[406286190,1771690232635,-291.8829195,0.00022391,2]
[406286191,1771690232644,-166.405092,0.000224,2]
[406286192,1771690232653,-250.0,0.00022466,2]
[406286193,1771690232662,-232.698,0.00022942,2]
[406286194,1771690232672,-636.0,0.00022942,2]
[406286195,1771690232681,-726.0,0.00022942,2]
[406286196,1771690232690,-199.88,0.00022942,2]
[406286197,1771690232700,-350.0,0.00023014,2]
[406286198,1771690232709,-450.0,0.00023562,2]
[406286199,1771690232718,-1000.0,0.00024275,10]
[406286200,1771690232728,-492.0,0.00024275,10]
[406286201,1771690232738,-500.0,0.00024689,16]
[406286202,1771690232747,-500.0,0.00024689,2]
[406286203,1771690232756,-187.18584781,0.00024689,16]
[406286204,1771690232767,-217.54,0.000251,7]
[406286205,1771690232776,-977.5,0.00025426,10]
[406286206,1771690232785,-743.87469872,0.00025643,2]
[406286207,1771690232795,-726.0,0.00025942,2]
[406286208,1771690232804,-181.0,0.00025942,2]
[406286209,1771690232813,-157.13,0.00026531,7]
[406286210,1771690232822,-1000.0,0.00026703,30]
[406286211,1771690232832,-791.0,0.00026703,30]
[406286212,1771690232841,-158.02,0.00027249,7]
[406286213,1771690232850,-150.0,0.00027397,5]
[406286214,1771690232859,-250.0,0.00027945,5]
[406286215,1771690232869,-150.0,0.00028,5]
[406286216,1771690232878,-159.84,0.00028476,7]
[406286217,1771690232887,-350.0,0.00028493,5]
[406286218,1771690232896,-250.0,0.00028548,5]
[406286219,1771690232906,-152.48764464,0.0002879,5]
[406286220,1771690232915,-1475.03542606,0.00028841,2]
[406286221,1771690232924,-482.69683131,0.0002894,2]
[406286222,1771690232934,-726.0,0.00028942,2]
[406286223,1771690232943,-181.0,0.00028942,2]
[406286224,1771690232952,-388.66113322,0.00029041,5]
[406286225,1771690232963,-350.0,0.00029096,5]
[406286226,1771690232972,-1000.0,0.00029373,30]
[406286227,1771690232982,-638.0,0.00029373,30]
[406286228,1771690232992,-193.2065117,0.00029564,2]
[406286229,1771690233003,-1525.76344044,0.00029564,2]
[406286286,1771690240788,-302.07409634,0.00028547,2]
[406286288,1771690240798,-500.0,0.00028547,2]
[406286290,1771690240807,-500.0,0.00028547,2]
[406286292,1771690240816,-500.0,0.00028547,2]
[406286294,1771690240825,-500.0,0.00028547,2]
[406286296,1771690240835,-500.0,0.00028547,2]
[406286298,1771690240844,-500.0,0.00028547,2]
[406286300,1771690240853,-500.0,0.00028547,2]
[406286303,1771690240863,-500.0,0.00028547,2]
[406286304,1771690240872,-500.0,0.00028547,2]
[406286307,1771690240881,-500.0,0.00028547,2]
[406286309,1771690240890,-384.11531357,0.00028547,2]
[406286311,1771690240900,-500.0,0.00028547,2]
[406286312,1771690240909,-500.0,0.00028547,2]
[406286314,1771690240918,-500.0,0.00028547,2]
[406286316,1771690240927,-500.0,0.00028547,2]
[406286318,1771690240936,-500.0,0.00028547,2]
[406286321,1771690240946,-500.0,0.00028547,2]
[406286322,1771690240955,-500.0,0.00028547,2]
[406286324,1771690240964,-500.0,0.00028547,2]
[406286327,1771690240973,-500.0,0.00028547,2]
[406286328,1771690240982,-500.0,0.00028547,2]
[406286331,1771690240992,-500.0,0.00028547,2]
[406286332,1771690241002,-500.0,0.00028547,2]
[406286334,1771690241012,-500.0,0.00028547,2]
[406286337,1771690241022,-500.0,0.00028547,2]
[406286339,1771690241032,-500.0,0.00028547,2]
[406286340,1771690241042,-500.0,0.00028547,2]
[406286343,1771690241051,-500.0,0.00028547,2]
[406286345,1771690241060,-500.0,0.00028547,2]
[406286346,1771690241069,-500.0,0.00028547,2]
[406286348,1771690241078,-500.0,0.00028547,2]
[406286350,1771690241087,-500.0,0.00028547,2]
[406286352,1771690241096,-500.0,0.00028547,2]
[406286354,1771690241105,-500.0,0.00028547,2]
[406286356,1771690241114,-500.0,0.00028547,2]
[406286358,1771690241123,-500.0,0.00028547,2]
[406286360,1771690241132,-500.0,0.00028547,2]
[406286362,1771690241142,-500.0,0.00028547,2]
[406286364,1771690241151,-500.0,0.00028547,2]
[406286366,1771690241161,-500.0,0.00028547,2]
[406286368,1771690241172,-500.0,0.00028547,2]
[406286371,1771690241182,-500.0,0.00028547,2]
[406286372,1771690241191,-500.0,0.00028547,2]
[406286375,1771690241201,-500.0,0.00028547,2]
[406286377,1771690241211,-500.0,0.00028547,2]
[406286379,1771690241220,-500.0,0.00028547,2]
[406286381,1771690241230,-500.0,0.00028547,2]
[406286383,1771690241239,-500.0,0.00028547,2]
[406286385,1771690241248,-500.0,0.00028547,2]
[406286387,1771690241258,-500.0,0.00028547,2]
[406286389,1771690241267,-500.0,0.00028547,2]
[406286391,1771690241276,-588.51162161,0.00028547,2]
[406286393,1771690241285,-500.0,0.00028547,2]
[406286395,1771690241294,-500.0,0.00028547,2]
[406286397,1771690241304,-387.3527073,0.00028547,2]
[406286399,1771690241313,-500.0,0.00028547,2]
[406286401,1771690241322,-500.0,0.00028547,2]
[406286403,1771690241332,-500.0,0.00028547,2]
[406286405,1771690241341,-500.0,0.00028547,2]
[406286407,1771690241350,-500.0,0.00028547,2]
[406286409,1771690241363,-500.0,0.00028547,2]
[406286411,1771690241372,-500.0,0.00028547,2]
[406286413,1771690241381,-500.0,0.00028547,2]
[406286415,1771690241391,-500.0,0.00028547,2]
[406286417,1771690241402,-500.0,0.00028547,2]
[406286419,1771690241411,-500.0,0.00028547,2]
[406286421,1771690241420,-500.0,0.00028547,2]
[406286423,1771690241431,-500.0,0.00028547,2]
[406286425,1771690241440,-500.0,0.00028547,2]
[406286427,1771690241450,-500.0,0.00028547,2]
[406286429,1771690241459,-500.0,0.00028547,2]
[406286431,1771690241469,-500.0,0.00028547,2]
[406286433,1771690241478,-500.0,0.00028547,2]
[406286435,1771690241487,-500.0,0.00028547,2]
[406286437,1771690241496,-500.0,0.00028547,2]
[406286439,1771690241505,-463.13679745,0.00028547,2]
[406286441,1771690241514,-950.67529826,0.00029564,2]
[406286443,1771690241525,-450.0,0.00029644,5]
[406286445,1771690241534,-199.0,0.00029836,14]
[406286447,1771690241543,-179.58550624,0.0003,14]
[406286449,1771690241551,-151.0,0.0003,14]
[406286451,1771690241562,-158.404,0.00030034,24]
[406286453,1771690241571,-550.0,0.00030192,5]
[406286455,1771690241580,-151.0,0.00030223,14]
[406286457,1771690241589,-275.94511048,0.000304,2]
[406286459,1771690241599,-1103.78044193,0.000304,2]
[406286461,1771690241607,-450.23942581,0.000304,2]
[406286465,1771690241634,-266.44354627,0.000304,2]
[406286467,1771690241644,-151.0,0.00030446,14]
[406286469,1771690241653,-151.0,0.00030669,14]
[406286471,1771690241662,-650.0,0.0003074,5]
[406286473,1771690241671,-151.0,0.00030892,14]
[406286485,1771690241681,-151.0,0.00031115,14]
[406286487,1771690241778,-1361.06407065,0.00031253,2]
[406286489,1771690241792,-1185.42805502,0.00031253,2]
[406286491,1771690241801,-750.0,0.00031288,5]
[406286493,1771690241810,-151.0,0.00031338,14]
[406286495,1771690241822,-163.0,0.00031479,14]
[406286497,1771690241833,-151.0,0.00031562,14]
[406286499,1771690241844,-475.0,0.0003168,120]
[406286501,1771690241853,-151.0,0.00031785,14]
[406286503,1771690241863,-850.0,0.00031836,5]
[406286505,1771690241871,-833.52270294,0.00031903,2]
[406286969,1771690246413,-124.2599828,0.00031903,2]
[406286971,1771690246423,-164.12,0.00031942,2]
[406286973,1771690246436,-151.0,0.00032008,14]
[406286975,1771690246445,-168.0,0.00032008,2]
[406286977,1771690246455,-33.09496289,0.00032231,14]
[406286979,1771690246467,-117.90503711,0.00032231,14]
[406286981,1771690246479,-950.0,0.00032384,5]
[406286984,1771690246489,-151.0,0.00032454,14]
[406286985,1771690246498,-391.202463,0.00032653,16]
[406286987,1771690246507,-99.89249989,0.00032663,30]
[406286990,1771690246520,-180.936804,0.00032663,30]
[406286992,1771690246529,-6601.01572208,0.00032664,2]
[406286994,1771690246540,-644.66,0.00032664,2]
[406287501,1771691432416,-208.70215394,0.00013173,2]
[406287503,1771691432425,-258.0,0.00013173,2]
[406287505,1771691432436,-607.0,0.00013173,2]
[406287507,1771691432445,-500.0,0.00013273,2]
[406287509,1771691432455,-477.88579833,0.00013273,2]
[406287511,1771691432464,-500.0,0.00013273,2]
[406287513,1771691432473,-276.93060846,0.00013697,2]
[406287881,1771691441114,-223.06939154,0.00013697,2]
[406287883,1771691441123,-237.36118139,0.00013697,2]
[406287885,1771691441133,-500.0,0.00013697,2]
[406287887,1771691441142,-500.0,0.00013697,2]
[406287889,1771691441152,-500.0,0.00013697,2]
[406287891,1771691441162,-500.0,0.00013697,2]
[406287893,1771691441174,-500.0,0.00013697,2]
[406287895,1771691441185,-500.0,0.00013697,2]
[406287897,1771691441195,-500.0,0.00013697,2]
[406287899,1771691441206,-500.0,0.00013697,2]
[406287901,1771691441217,-565.39018018,0.00013697,2]
[406287903,1771691441227,-500.0,0.00013697,2]
[406287905,1771691441241,-394.97039331,0.00013697,2]
[406287907,1771691441252,-500.0,0.00013697,2]
[406287909,1771691441263,-409.20885358,0.00013697,2]
[406287911,1771691441276,-90.79114642,0.00013697,2]
[406287913,1771691441287,-500.0,0.00013697,2]
[406287916,1771691441297,-500.0,0.00013697,2]
[406287918,1771691441308,-570.63588776,0.00013697,2]
[406287920,1771691441318,-500.0,0.00013697,2]
[406287922,1771691441328,-500.0,0.00013697,2]
[406287924,1771691441338,-159.01212564,0.00013697,2]
[406287926,1771691441348,-500.0,0.00013697,2]
[406287928,1771691441359,-500.0,0.00013697,2]
[406287929,1771691441370,-500.0,0.00013697,2]
[406287931,1771691441379,-500.0,0.00013697,2]
[406287933,1771691441390,-500.0,0.00013697,2]
[406287935,1771691441402,-500.0,0.00013697,2]
[406287937,1771691441412,-500.0,0.00013697,2]
[406287939,1771691441424,-500.0,0.00013697,2]
[406287941,1771691441435,-500.0,0.00013697,2]
[406287943,1771691441447,-500.0,0.00013697,2]
[406287946,1771691441459,-500.0,0.00013697,2]
[406287948,1771691441469,-500.0,0.00013697,2]
[406287950,1771691441482,-500.0,0.00013697,2]
[406287952,1771691441499,-500.0,0.00013697,2]
[406287954,1771691441510,-500.0,0.00013697,2]
[406287956,1771691441521,-500.0,0.00013697,2]
[406287958,1771691441531,-500.0,0.00013697,2]
[406287960,1771691441542,-500.0,0.00013697,2]
[406287961,1771691441552,-500.0,0.00013697,2]
[406287964,1771691441562,-500.0,0.00013697,2]
[406287966,1771691441572,-500.0,0.00013697,2]
[406287967,1771691441582,-500.0,0.00013697,2]
[406287970,1771691441592,-500.0,0.00013697,2]
[406287972,1771691441603,-500.0,0.00013697,2]
[406287974,1771691441612,-500.0,0.00013697,2]
[406287976,1771691441621,-500.0,0.00013697,2]
[406287977,1771691441630,-500.0,0.00013697,2]
[406287980,1771691441640,-500.0,0.00013697,2]
[406287981,1771691441650,-500.0,0.00013697,2]
[406287983,1771691441659,-500.0,0.00013697,2]
[406287985,1771691441669,-500.0,0.00013697,2]
[406287988,1771691441679,-500.0,0.00013697,2]
[406287990,1771691441694,-500.0,0.00013697,2]
[406287992,1771691441704,-500.0,0.00013697,2]
[406287994,1771691441713,-500.0,0.00013697,2]
[406287996,1771691441723,-500.0,0.00013697,2]
[406287997,1771691441736,-500.0,0.00013697,2]
[406288000,1771691441746,-400.0,0.00013697,2]
[406288001,1771691441755,-500.0,0.00013697,2]
[406288004,1771691441767,-500.0,0.00013697,2]
[406288006,1771691441776,-500.0,0.00013697,2]
[406288008,1771691441786,-500.0,0.00013697,2]
[406288010,1771691441795,-500.0,0.00013697,2]
[406288012,1771691441805,-500.0,0.00013697,2]
[406288014,1771691441814,-500.0,0.00013697,2]
[406288016,1771691441823,-500.0,0.00013697,2]
[406288018,1771691441833,-500.0,0.00013697,2]
[406288020,1771691441842,-500.0,0.00013697,2]
[406288022,1771691441851,-500.0,0.00013697,2]
[406288023,1771691441860,-500.0,0.00013697,2]
[406288025,1771691441870,-500.0,0.00013697,2]
[406288027,1771691441879,-500.0,0.00013697,2]
[406288029,1771691441888,-500.0,0.00013697,2]
[406288031,1771691441899,-500.0,0.00013697,2]
[406288033,1771691441908,-500.0,0.00013697,2]
[406288035,1771691441917,-500.0,0.00013697,2]
[406288037,1771691441926,-500.0,0.00013697,2]
[406288040,1771691441937,-500.0,0.00013697,2]
[406288042,1771691441947,-500.0,0.00013697,2]
[406288044,1771691441957,-500.0,0.00013697,2]
[406288046,1771691441966,-500.0,0.00013697,2]
[406288048,1771691441975,-500.0,0.00013697,2]
[406288050,1771691441986,-500.0,0.00013697,2]
[406288051,1771691441996,-33160.17613698,0.00013697,2]
[406288200,1771691443853,-5515.27730103,0.00013697,2]
[406288202,1771691443863,-210.97282276,0.00013699,2]
[406288204,1771691443872,-500.0,0.00013699,2]
[406288206,1771691443881,-500.0,0.00013699,2]
[406288208,1771691443891,-500.0,0.00013699,2]
[406288209,1771691443899,-500.0,0.00013699,2]
[406288211,1771691443909,-500.0,0.00013699,2]
[406288212,1771691443919,-500.0,0.00013699,2]
[406288213,1771691443928,-500.0,0.00013699,2]
[406288215,1771691443937,-500.0,0.00013699,2]
[406288216,1771691443947,-500.0,0.00013699,2]
[406288217,1771691443956,-500.0,0.00013699,2]
[406288218,1771691443965,-500.0,0.00013699,2]
[406288219,1771691443974,-500.0,0.00013699,2]
[406288220,1771691443984,-500.0,0.00013699,2]
[406288221,1771691443992,-500.0,0.00013699,2]
[406288222,1771691444001,-154.67145708,0.00013699,2]
[406288223,1771691444011,-500.0,0.00013699,2]
[406288224,1771691444020,-1000.0,0.00013821,2]
[406288225,1771691444029,-1000.0,0.00013821,2]
[406288226,1771691444038,-167.684233,0.00013938,2]
[406288227,1771691444048,-500.0,0.00014247,2]
[406288228,1771691444058,-579.0195383,0.00014247,2]
[406288229,1771691444067,-500.0,0.00014247,2]
[406288230,1771691444076,-1500.0,0.00014368,2]
[406288231,1771691444085,-1299.01983641,0.00014368,2]
[406288232,1771691444095,-525.32978395,0.0001452,2]
[406288233,1771691444104,-167.684233,0.00014525,2]
[406288235,1771691444113,-2012.96938194,0.00014916,2]
[406288237,1771691444122,-167.684233,0.00015112,2]
[406288238,1771691444132,-15882.98934066,0.000156,2]
[406288240,1771691444141,-167.684233,0.00015698,2]
[406288242,1771691444149,-167.684233,0.00016285,2]
[406288243,1771691444159,-167.684233,0.00016872,2]
[406288244,1771691444168,-1438.99285466,0.00017,2]
[406288245,1771691444179,-5741.85614102,0.00017,2]
[406288246,1771691444188,-7721.9834457,0.000173,2]
[406288247,1771691444199,-1954.0,0.000173,2]
[406288248,1771691444210,-778.35359997,0.000173,2]
[406288249,1771691444220,-3386.75,0.000173,2]
[406288250,1771691444232,-3755.00575307,0.000173,2]
[406288252,1771691446519,-610.99505787,0.000173,2]
[406288253,1771691473176,5000.0,0.000156,120]
[406288254,1771691482411,-412.15992336,0.00013696,2]
[406288255,1771691518276,-472.68987024,0.00017127,120]
[406288256,1771691518299,-1726.70548953,0.00017127,120]
[406288259,1771691547525,-401.07702547,0.00013273,2]
[406288260,1771691547548,-82.69574266,0.00013273,2]
[406288264,1771691576857,-401.07702547,0.00013273,2]
[406288508,1771692631622,-2259.76777739,0.00012356,2]
[406288547,1771692637694,-2740.23222261,0.00012356,2]
[406288549,1771692637704,-596.0,0.00012481,2]
[406288551,1771692637713,-258.0,0.00012576,2]
[406288553,1771692637722,-3575.29333615,0.00012681,2]
[406288557,1771692637748,-12861.31363675,0.00012681,2]
[406288559,1771692637757,-465.7033787,0.00012734,2]
[406288561,1771692637766,-290.2117192,0.00013011,2]
[406288563,1771692637775,-500.0,0.00013273,2]
[406288565,1771692637784,-500.0,0.00013273,2]
[406288567,1771692637793,-598.92297453,0.00013273,2]
[406288570,1771692637803,-1290.65599775,0.00013599,2]
[406288572,1771692637812,-300.0,0.00013673,2]
[406288574,1771692637822,-300.0,0.00013673,2]
[406288576,1771692637831,-8058.9765126,0.00013699,2]
[406288578,1771692637840,-500.0,0.00013699,2]
[406288580,1771692637849,-500.0,0.00013699,2]
[406288582,1771692637858,-500.0,0.00013699,2]
[406288584,1771692637868,-500.0,0.00013699,2]
[406288586,1771692637877,-500.0,0.00013699,2]
[406288588,1771692637886,-500.0,0.00013699,2]
[406288590,1771692637895,-500.0,0.00013699,2]
[406288592,1771692637904,-500.0,0.00013699,2]
[406288594,1771692637914,-500.0,0.00013699,2]
[406288596,1771692637923,-500.0,0.00013699,2]
[406288598,1771692637932,-500.0,0.00013699,2]
[406288600,1771692637941,-500.0,0.00013699,2]
[406288602,1771692637950,-500.0,0.00013699,2]
[406288604,1771692637960,-500.0,0.00013699,2]
[406288606,1771692637970,-223.21171601,0.00013699,2]
[406288608,1771692637979,-200.0,0.00013699,2]
[406288610,1771692637989,-500.0,0.00013699,2]
[406288612,1771692637997,-500.0,0.00013699,2]
[406288614,1771692638007,-500.0,0.00013699,2]
[406288615,1771692638016,-500.0,0.00013699,2]
[406288617,1771692638025,-500.0,0.00013699,2]
[406288619,1771692638035,-500.0,0.00013699,2]
[406288621,1771692638047,-500.0,0.00013699,2]
[406288623,1771692638057,-500.0,0.00013699,2]
[406288625,1771692638067,-500.0,0.00013699,2]
[406288626,1771692638077,-500.0,0.00013699,2]
[406288628,1771692638088,-500.0,0.00013699,2]
[406288630,1771692638098,-289.02717724,0.00013699,2]
[406288632,1771692638108,-500.0,0.00013699,2]
[406288634,1771692638119,-500.0,0.00013699,2]
[406288636,1771692638129,-500.0,0.00013699,2]
[406288638,1771692638138,-500.0,0.00013699,2]
[406288640,1771692638148,-500.0,0.00013699,2]
[406288642,1771692638158,-500.0,0.00013821,2]
[406288644,1771692638167,-500.0,0.00013821,2]
[406288646,1771692638177,-1089.45925835,0.00014175,2]
[406288648,1771692638186,-600.0,0.00014221,2]
[406288650,1771692638196,-500.0,0.00014247,2]
[406288652,1771692638205,-500.0,0.00014247,2]
[406288654,1771692638214,-500.0,0.00014247,2]
[406288656,1771692638223,-500.0,0.00014247,2]
[406288658,1771692638232,-500.0,0.00014247,2]
[406288660,1771692638240,-500.0,0.00014247,2]
[406288662,1771692638249,-500.0,0.00014247,2]
[406288664,1771692638258,-500.0,0.00014247,2]
[406288666,1771692638267,-500.0,0.00014247,2]
[406288668,1771692638276,-500.0,0.00014247,2]
[406288670,1771692638285,-500.0,0.00014247,2]
[406288672,1771692638294,-500.0,0.00014247,2]
[406288674,1771692638304,-500.0,0.00014247,2]
[406288676,1771692638314,-177.39340792,0.00014247,2]
[406288678,1771692638324,-334.21145277,0.00014247,2]
[406288680,1771692638334,-500.0,0.00014247,2]
[406288682,1771692638344,-500.0,0.00014247,2]
[406288684,1771692638354,-500.0,0.00014247,2]
[406288686,1771692638364,-491.16763279,0.00014247,2]
[406288688,1771692638375,-500.0,0.00014247,2]
[406288690,1771692638386,-500.0,0.00014247,2]
[406288692,1771692638395,-500.0,0.00014247,2]
[406288694,1771692638404,-396.5412528,0.00014247,2]
[406288696,1771692638414,-1000.0,0.00014247,2]
[406288698,1771692638424,-1000.0,0.00014247,2]
[406288700,1771692638433,-500.0,0.00014247,2]
[406288702,1771692638442,-500.0,0.00014247,2]
[406288704,1771692638451,-500.0,0.00014247,2]
[406288706,1771692638461,-500.0,0.00014247,2]
[406288708,1771692638470,-500.0,0.00014247,2]
[406288710,1771692638479,-1187.25769755,0.00014795,2]
[406288712,1771692638488,-198.01686278,0.000149,2]
[406288714,1771692638498,-154.5652095,0.00015017,2]
[406288717,1771692638514,-5355.9250841,0.00015017,2]
[406288720,1771692638527,-6114.9447785,0.00015017,2]
[406288722,1771692638537,-2028.91851683,0.00015358,2]
[406288724,1771692638546,-5197.91232017,0.000156,2]
[406288726,1771692638556,-150.0,0.00016438,2]
[406288727,1771692638566,-2069.76457141,0.00016541,2]
[406288729,1771692638576,-6114.9447785,0.00016957,2]
[406288731,1771692638585,-5355.9250841,0.00016964,2]
[406288733,1771692638595,-400.0,0.00016986,2]
[406288735,1771692638605,-1563.5797209,0.00017086,2]
[406288737,1771692638615,-31634.06659812,0.000173,2]
[406289228,1771692642970,-2047.97058272,0.000173,2]
[406289245,1771692643128,-17112.90630912,0.000173,2]
[406289247,1771692643139,-1316.27915126,0.000173,2]
[406289249,1771692643150,-1382.8,0.000173,2]
[406289490,1771692645636,-13451.4842812,0.000173,2]
[406289492,1771692645646,-153.0,0.000173,2]
[406289494,1771692645655,-153.0,0.000173,2]
[406289496,1771692645664,-153.0,0.000173,2]
[406289498,1771692645673,-155.11630309,0.000173,2]
[406289500,1771692645682,-153.0,0.000173,2]
[406289502,1771692645691,-153.0,0.000173,2]
[406289504,1771692645700,-153.0,0.000173,2]
[406289506,1771692645709,-153.0,0.000173,2]
[406289508,1771692645718,-2192.30273555,0.00017725,2]
[406289510,1771692645727,-13647.0623519,0.00018,2]
[406289512,1771692645736,-150.0,0.00018022,30]
[406289514,1771692645745,-3393.65132148,0.00018897,2]
[406290523,1771693014646,150.0,0.00014,30]
[406290608,1771693262208,-2675.81506082,0.00012768,2]
[406290609,1771693262224,-1525.95266974,0.00012768,2]
[406290610,1771693262238,-2675.81506082,0.00012897,2]
[406290691,1771693451167,452.0,8e-05,2]
[406290764,1771693831737,-535.74513621,0.0001264,2]
[406290766,1771693831762,-633.15360323,0.0001264,2]
[406290806,1771693837930,-3831.10126056,0.0001264,2]
[406290807,1771693837941,-599.0,0.0001264,2]
[406290808,1771693837955,-500.0,0.00013273,2]
[406290809,1771693837964,-549.90140613,0.00013699,2]
[406290810,1771693837974,-512.00404287,0.00013699,2]
[406290811,1771693837983,-165.78854723,0.00013699,2]
[406290812,1771693837992,-194.07069104,0.00013699,2]
[406290813,1771693838002,-500.0,0.00013699,2]
[406290815,1771693838011,-1000.0,0.00013821,2]
[406290816,1771693838020,-1318.36001738,0.00014175,3]
[406290817,1771693838029,-1117.20205891,0.00016008,3]
[406291398,1771693843676,-1321.121323,0.00016008,3]
[406293228,1771695031964,-2290.05687719,0.00012623,2]
[406293276,1771695038174,-2709.94312281,0.00012623,2]
[406293278,1771695038183,-599.0,0.00012623,2]
[406293280,1771695038192,-162.10741719,0.00012648,2]
[406293282,1771695038202,-150.0,0.00012815,2]
[406293284,1771695038212,-300.0,0.00013272,2]
[406293286,1771695038221,-500.0,0.00013273,2]
[406293288,1771695038231,-500.0,0.00013273,2]
[406293290,1771695038240,-500.0,0.00013273,2]
[406293292,1771695038249,-6940.5919039,0.00013346,2]
[406293294,1771695038258,-300.0,0.00013673,2]
[406293296,1771695038267,-500.0,0.00013699,2]
[406293298,1771695038276,-517.65714536,0.00013699,2]
[406293300,1771695038285,-500.0,0.00013699,2]
[406293302,1771695038293,-500.0,0.00013699,2]
[406293304,1771695038305,-482.61507458,0.00013699,2]
[406293306,1771695038314,-500.0,0.00013699,2]
[406293308,1771695038322,-500.0,0.00013699,2]
[406293310,1771695038331,-500.0,0.00013699,2]
[406293312,1771695038340,-190.96290534,0.00013821,2]
[406293314,1771695038350,-1000.0,0.00013821,2]
[406293316,1771695038359,-1000.0,0.00013821,2]
[406293318,1771695038369,-164.5889024,0.00013973,2]
[406293320,1771695038379,-150.44666625,0.00014247,2]
[406293322,1771695038388,-1000.0,0.00014247,2]
[406293323,1771695038397,-507.50724426,0.00014247,2]
[406293324,1771695038406,-1000.0,0.00014247,2]
[406293326,1771695038415,-389.16745886,0.00014247,2]
[406293328,1771695038425,-1000.0,0.00014247,2]
[406293330,1771695038434,-591.37533657,0.00014368,2]
[406293332,1771695038443,-1500.0,0.00014368,2]
[406293334,1771695038452,-420.0,0.00014551,2]
[406293336,1771695038461,-177.0,0.00014815,2]
[406293338,1771695038471,-1516.07056974,0.00014911,2]
[406293340,1771695038480,-2000.0,0.00014916,2]
[406293342,1771695038489,-2483.50599435,0.00015158,2]
[406293344,1771695038498,-2500.0,0.00015464,2]
[406293346,1771695038509,-500.0,0.00015599,2]
[406293348,1771695038518,-500.0,0.00015599,2]